Workbook

Sheet FACTUUR INVOER
A1: TTAS | H1: FACTUUR
A2: HOOGSTRAAT 170
A3: BE-9100 MECHELEN | F3: FACTUURNR. | H3: 201903-005
A4: BELGIE
F5: FACTUURDATUM | H5: 2019-03-06
A6: GSM 0477 583 713
A7: Btw-nr. BE 0456 777 888
A8: ANDRE.VAN.DRIESSE@TELENET.BE
E11: WILLY DE WITTE
E12: DIENST BOEKHOUDEN
E13: LANGSTRAAT 45
E14: 9400 VILVOORDE
E15: BELGIE
E16: BE 0342 345 876
A20: Werf nr 190 maart 2019
A22: Omschrijving | B22: Uren | C22: Euro/uur | D22: Procent | E22: BTW | F22: BTW | G22: BTW | H22: BTW
D23: Toeslag | E23: Exclusief | F23: Tarief | G23: Bedrag | H23: Inclusief
E24: =SUM(($B$24*$C$24)*(1+$D24)) -> 0 | G24: =$E$24*$F$24 -> 0 | H24: =IF($F$24="","",$E$24+$G$24) -> 
E25: =SUM(($B$25*$C$25)*(1+$D25)) -> 0 | G25: =$E$25*$F$25 -> 0 | H25: =IF($F$25="","",$E25+$G$25) -> 
E26: =SUM(($B$26*$C$26)*(1+$D26)) -> 0 | G26: =$E$26*$F$26 -> 0 | H26: =IF(F26="","",E26+G26) -> 
E27: =SUM(($B$27*$C$27)*(1+$D27)) -> 0 | G27: =$E$27*$F$27 -> 0 | H27: =IF($F$27="","",$E$27+$G$27) ->  | K27: 201903-001 | L27: FACTUUR NR
A28: Gepresteerde gewone uren | B28: 140.5 | C28: 32 | E28: =SUM(($B$28*$C$28)*(1+$D$28)) -> 4496 | F28: 0.21 | G28: =$E$28*$F$28 -> 944.16 | H28: =IF($F$28="","",$E$28+$G$28) -> 5440.16 | K28: 2019-03-06 | L28: DATUM KLANT BETAALD
E29: =SUM(($B$29*$C$29)*(1+$D$29)) -> 0 | G29: =$E$29*$F$29 -> 0 | H29: =IF($F$29="","",$E$29+$G$29) ->  | K29: Bankuitrekselnr 15 / 3 | L29: INVOEREN
E30: =SUM(($B$30*$C$30)*(1+$D$30)) -> 0 | G30: =$E$30*$F$30 -> 0 | H30: =IF($F$30="","",$E$30+$G$30) ->  | K30: OK BETAALD | L30: STATUS
E31: =SUM(($B$31*$C$31)*(1+$D$31)) -> 0 | G31: =$E$31*$F$31 -> 0 | H31: =IF($F$31="","",$E$31+$G$31) -> 
E32: =SUM((B32*C32)+((B32*C32)*D32)) -> 0 | G32: =E32*F32 -> 0 | H32: =IF(F32="","",E32+G32) -> 
E33: 0 | G33: =E33*F33 -> 0 | H33: =IF(F33="","",E33+G33) -> 
E34: 0 | G34: 0
E35: 0 | G35: 0
E36: 0 | G36: =E36*F36 -> 0
E37: 0 | G37: 0
E38: 0 | G38: 0
E39: 0 | G39: 0
E40: 0 | G40: 0
E41: 0 | G41: 0
E42: 0 | G42: 0
E43: 0 | G43: 0
E44: =SUM((B44*C44)+((B44*C44)*D44)) -> 0 | G44: 0
E45: =SUM((B45*C45)+((B45*C45)*D45)) -> 0 | G45: =E45*F45 -> 0
E46: =SUM(E24:E45) -> 4496 | G46: =SUM(G24:G45) -> 944.16
A47: TOTAAL TE BETALEN | H47: =SUM($H$24:$H$45) -> 5440.16
E49: BTW aan | F49: =IFERROR(VLOOKUP(21%,$F$24:$F$45,1,0),"") -> 0.21 | G49: =(SUMIF($F$24:$F$45,0.21,$G$24:$G$45)) -> 944.16
A50: ING Bank IBAN BE80 9514 7536 8526 | F50: =IFERROR(VLOOKUP(19%,$F$24:$F$45,1,0),"") ->  | G50: =(SUMIF($F$24:$F$45,0.19,$G$24:$G$45)) -> 0
F51: =IFERROR(VLOOKUP(6%,$F$24:$F$45,1,0),"") ->  | G51: =(SUMIF($F$24:$F$45,0.06,$G$24:$G$45)) -> 0
A52: U wordt verzocht het vermelde bedrag binnen de 30 dagen over te maken
A53: op het onderstaande rekeningnummer met vermelding van factuurnummer

Sheet FACTUURLIJST
A1: Nr | C1: Vervaldatum | D1: Overschreden | F1: Datum | G1: Bankuitrek | H1: Status | I1: FACTUUR NR | J1: DATUM | L1: FACTUUR | N1: OMSCHRIJVING | P1: Exclusief BTW | Q1: Creditnota | S1: BTW Tarief(a) | T1: BTW Bedrag(a) | U1: Creditnota(a) | W1: BTW Tarief(b) | X1: BTW Bedrag(b) | Y1: Creditnota(b) | AA1: BTW Tarief(c) | AB1: BTW Bedrag(c) | AC1: Creditnota(c) | AE1: Totaal | AF1: Creditnota(d) | AH1: FIRMANAAM | AI1: DIENST BOEKHOUDEN | AJ1: STRAAT + NR | AK1: POSTCODE + GEMEENTE | AL1: LAND | AM1: BTW nummer | AN1: Mnd
D2: bedrag | F2: Klant betaald | L2: CREDITNOTA | P2: =SUM(P4-Q4) -> 22480 | T2: =SUM(T4-U4) -> 4720.8 | X2: =SUM(X4-Y4) -> 0 | AB2: =SUM(AB4-AC4) -> 0 | AE2: =SUM(AE4-AF4) -> 27200.8
F3: Factuur | P3: -
P4: =SUM($P$7:$P$994) -> 22480 | Q4: =SUM($Q$7:$Q$994) -> 0 | T4: =SUM($T$7:$T$994) -> 4720.8 | U4: =SUM($U$7:$U$994) -> 0 | X4: =SUM($X$7:$X$994) -> 0 | Y4: =SUM($Y$7:$Y$994) -> 0 | AB4: =SUM($AB$7:$AB$994) -> 0 | AC4: =SUM($AC$7:$AC$994) -> 0 | AE4: =SUM($AE$7:$AE$994) -> 27200.8 | AF4: =SUM($AF$7:$AF$994) -> 0
A6: 0 | I6: FACTUUR NR
A7: =IF($I7="","",1+$A6) -> 1 | C7: 2019-04-05 | D7: =SUMIF(C7,"<"&TODAY(),AE7) -> 0 | F7: 2019-03-06 | G7: Bankuitrekselnr 15 / 3 | H7: Ok Betaald | I7: 201903-001 | J7: 2019-03-02 | L7: FACTUUR | N7: Werf nr 190 maart 2019 | P7: 4496 | S7: 0.21 | T7: 944.16 | X7: 0 | AB7: 0 | AE7: 5440.16 | AH7: WILLY DE WITTE | AI7: DIENST BOEKHOUDEN | AJ7: LANGSTRAAT 45 | AK7: 9400 VILVOORDE | AL7: BELGIE | AM7: BE 0342 345 876 | AN7: =MONTH(J7) -> 3
A8: =IF($I8="","",1+$A7) -> 2 | C8: 2019-04-05 | D8: =SUMIF(C8,"<"&TODAY(),AE8) -> 0 | I8: 201903-002 | J8: 2019-03-02 | L8: FACTUUR | N8: Werf nr 190 maart 2019 | P8: 4496 | S8: 0.21 | T8: 944.16 | X8: 0 | AB8: 0 | AE8: 5440.16 | AH8: WILLY DE WITTE | AI8: DIENST BOEKHOUDEN | AJ8: LANGSTRAAT 45 | AK8: 9400 VILVOORDE | AL8: BELGIE | AM8: BE 0342 345 876 | AN8: =MONTH(J8) -> 3
A9: =IF($I9="","",1+$A8) -> 3 | C9: 2019-04-05 | D9: =SUMIF(C9,"<"&TODAY(),AE9) -> 0 | I9: 201903-003 | J9: 2019-03-03 | L9: FACTUUR | N9: Werf nr 190 maart 2019 | P9: 4496 | S9: 0.21 | T9: 944.16 | X9: 0 | AB9: 0 | AE9: 5440.16 | AH9: WILLY DE WITTE | AI9: DIENST BOEKHOUDEN | AJ9: LANGSTRAAT 45 | AK9: 9400 VILVOORDE | AL9: BELGIE | AM9: BE 0342 345 876 | AN9: =MONTH(J9) -> 3
A10: =IF($I10="","",1+$A9) -> 4 | C10: 2019-04-05 | D10: =SUMIF(C10,"<"&TODAY(),AE10) -> 0 | I10: 201903-004 | J10: 2019-03-03 | L10: FACTUUR | N10: Werf nr 190 maart 2019 | P10: 4496 | S10: 0.21 | T10: 944.16 | X10: 0 | AB10: 0 | AE10: 5440.16 | AH10: WILLY DE WITTE | AI10: DIENST BOEKHOUDEN | AJ10: LANGSTRAAT 45 | AK10: 9400 VILVOORDE | AL10: BELGIE | AM10: BE 0342 345 876 | AN10: =MONTH(J10) -> 3
A11: =IF($I11="","",1+$A10) -> 5 | C11: 2019-04-05 | D11: =SUMIF(C11,"<"&TODAY(),AE11) -> 0 | I11: 201903-005 | J11: 2019-03-04 | L11: FACTUUR | N11: Werf nr 190 maart 2019 | P11: 4496 | S11: 0.21 | T11: 944.16 | X11: 0 | AB11: 0 | AE11: 5440.16 | AH11: WILLY DE WITTE | AI11: DIENST BOEKHOUDEN | AJ11: LANGSTRAAT 45 | AK11: 9400 VILVOORDE | AL11: BELGIE | AM11: BE 0342 345 876 | AN11: =MONTH(J11) -> 3

Sheet Factuur (hidden)
A1: A.V.D. | H1: FACTUUR
A2: HOOGSTRAAT 170
A3: BE-9100 SINT-NIKLAAS | F3: FACTUURNR. | H3: 201902-074
A4: BELGIE
F5: FACTUURDATUM | H5: 2019-02-10
A6: GSM 0477 583 713
A7: Btw-nr. BE 0456 777 888
A8: ANDRE.VAN.DRIESSE@TELENET.BE
E11: VAN DEN BORRE
E12: DIENST BOEKHOUDEN
E13: KALKSTRAAT 78
E14: 4620 SINT-NIKLAAS
E15: BELGIE
E16: BE 3456 987 123
A20: Werf Lanxess Bayer nr 190 januari 2019
A22: Omschrijving | B22: Uren | C22: Euro/uur | D22: Procent | E22: BTW | F22: BTW | G22: BTW | H22: BTW
D23: Toeslag | E23: Exclusief | F23: Tarief | G23: Bedrag | H23: Inclusief
E24: 0 | G24: 0 | H24: =IF(F24="","",E24+G24) -> 
E25: 0 | G25: 0 | H25: =IF(F25="","",E25+G25) -> 
E26: 0 | G26: 0 | H26: =IF(F26="","",E26+G26) -> 
E27: 0 | G27: 0 | H27: =IF(F27="","",E27+G27) -> 
A28: Gepresteerde gewone uren | B28: 140.5 | C28: 32 | E28: 4496 | F28: 0.21 | G28: 944.16 | H28: =IF($F$28="","",$E$28+$G$28) -> 5440.16
A29: overuren (8) + 1 ste uur (geen toeslag) | B29: 4 | C29: 32 | E29: 128 | F29: 0.21 | G29: 26.88 | H29: =IF(F29="","",E29+G29) -> 154.88
A30: overuren (8) + vanaf 2de uur | B30: 3 | C30: 32 | D30: 0.5 | E30: 144 | F30: 0.21 | G30: 30.24 | H30: 174.24
B31: 2 | C31: 5 | D31: 0.5 | E31: 15 | F31: 0.21 | G31: 3.15 | H31: 18.15
A32: Zaterdagen | B32: 8 | C32: 32 | D32: 0.5 | E32: 384 | F32: 0.19 | G32: 72.96 | H32: 456.96
A33: Zondagen | B33: 8 | C33: 32 | D33: 0.5 | E33: 384 | F33: 0.21 | G33: 80.64 | H33: 464.64
E34: 0 | G34: 0
A35: Feestdagen | B35: 8 | C35: 32 | D35: 1 | E35: 512 | F35: 0.06 | G35: 30.72 | H35: 542.72
E36: 0 | G36: 0
A37: Gepresteerd ploegwerk | E37: 0 | G37: 0
A38: Gepresteerd nachtwerk | E38: 0 | G38: 0
E39: 0 | G39: 0
E40: 0 | G40: 0
E41: 0 | G41: 0
E42: 0 | G42: 0
E43: 0 | G43: 0
E44: 0 | G44: 0
E45: 0 | G45: 0
E46: =SUM(E24:E45) -> 6063 | G46: =SUM(G24:G45) -> 1188.75
A47: TOTAAL TE BETALEN | H47: =SUM($H$24:$H$45) -> 7251.75
E49: BTW aan | F49: =IFERROR(VLOOKUP(21%,$F$24:$F$45,1,0),"") -> 0.21 | G49: =(SUMIF($F$24:$F$45,0.21,$G$24:$G$45)) -> 1085.07
A50: Recordbank IBAN BE80 9514 7536 8526 | F50: =IFERROR(VLOOKUP(19%,$F$24:$F$45,1,0),"") -> 0.19 | G50: =(SUMIF($F$24:$F$45,0.19,$G$24:$G$45)) -> 72.96
F51: =IFERROR(VLOOKUP(6%,$F$24:$F$45,1,0),"") -> 0.06 | G51: =(SUMIF($F$24:$F$45,0.06,$G$24:$G$45)) -> 30.72
A52: U wordt verzocht het vermelde bedrag binnen de 30 dagen over te maken
A53: op het onderstaande rekeningnummer met vermelding van factuurnummer
